Cogmind - Beta 12 @@@ ROGUE MODE // 2023.09.11 @ 19:41:10 Player: Eddbot Result: Destroyed by D-53 Grenadier with Mini Grenade Launcher Performance ------------- Evolutions (0) 0 Regions Visited (2) 400 Robots Destroyed (9) 45 Value Destroyed (75) 75 Prototype IDs (0) 0 Alien Tech Used (0) 0 Bonus (0) 0 TOTAL SCORE: 520 Bonus ------- None Cogmind --------- Core Integrity 0/250 Matter 300/300 Energy 100/100 System Corruption 0% Temperature Cool (0) Movement Core (100) Ox1 Location -10/Mines Parts ------- > --- POWER (1) -------- (None) > --- PROPULSION (2) --- (None) > --- UTILITY (2) ------ Small Storage Unit > --- WEAPON (2) ------- (None) > --- INVENTORY (8) ---- Light Ion Engine Wheel Wheel Improved Terrain Scanner Light Assault Rifle Mining Laser Mining Laser Peak State ------------ > --- POWER ------------ Light Ion Engine > --- PROPULSION ------- Wheel Compact Wheel > --- UTILITY ---------- Small Storage Unit Improved Terrain Scanner > --- WEAPON ----------- Small Laser Assault Rifle > --- INVENTORY -------- Light Ion Engine Wheel Wheel Wheel Improved Terrain Scanner Light Assault Rifle Mining Laser Mining Laser [Rating: 10] Favorites ----------- Power Light Ion Engine Engine Light Ion Engine Propulsion Wheel Wheel Wheel Utility Small Storage Unit Device Improved Terrain Scanner Storage Small Storage Unit Weapon Assault Rifle Energy Gun Small Laser Ballistic Gun Assault Rifle Build | -11 -10 -10 ------- Run | Jun Mat Min Slots Evolved . | . . . Power . | . . . Propulsion . | . . . Utility . | . . . Weapon . | . . . Parts Attached 8 | 7 . 1 Power 1 | 1 . . Engine 1 | 1 . . Core . | . . . Reactor . | . . . Propulsion 3 | 2 . 1 Treads . | . . . Leg . | . . . Wheel 3 | 2 . 1 Hover . | . . . Flight . | . . . Utility 2 | 2 . . Device 1 | 1 . . Storage 1 | 1 . . Processor . | . . . Hackware . | . . . Protection . | . . . Artifact . | . . . Weapon 2 | 2 . . Energy Gun 1 | 1 . . Energy Cannon . | . . . Ballistic Gun 1 | 1 . . Ballistic Cannon . | . . . Launcher . | . . . Special Weapon . | . . . Impact Weapon . | . . . Slashing Weapon . | . . . Piercing Weapon . | . . . Special Melee Weapon . | . . . Unidentified Prototypes . | . . . Parts Lost 7 | . . 7 Power 1 | . . 1 Propulsion 3 | . . 3 Utility 1 | . . 1 Weapon 2 | . . 2 Highest Loss Streak 6 | . . 6 To Critical Strikes . | . . . Average Slot Usage (%) 92 | . 100 90 Engine 14 | . 14 14 Wheel 22 | . 28 20 Device 14 | . 14 14 Storage 14 | . 14 14 Energy Gun 13 | . 14 12 Ballistic Gun 14 | . 14 14 Naked Turns . | . . . Heaviest Build 12 | 12 12 12 Greatest Support 26 | 26 26 26 Greatest Overweight (x) 3 | 3 . 3 Average Overweight (x) . | . . . Largest Inventory Capacity 8 | 8 8 8 Average Capacity 7 | 7 8 8 Most Carried 8 | 7 8 8 Average Carried 5 | 3 7 7 Final Capacity 8 | 8 8 8 Final Carried 8 | 7 8 7 Class Distribution -------------------- 100% | Mutant Dominant Class ---------------- Mutant | -10/Materials Mutant | -10/Mines Resources | -11 -10 -10 ----------- Run | Jun Mat Min Matter Collected 350 | 303 . 47 Remotely . | . . . Salvage Created 250 | 199 . 51 Parts 21 | 15 . 6 Haulers Intercepted . | . . . Recyclers Shooed . | . . . Parts Field Recycled . | . . . Retrieved Matter . | . . . Parts Self-Destructed . | . . . Prevented . | . . . Kills | -11 -10 -10 ------- Run | Jun Mat Min Combat Hostiles Destroyed 3 | . . 3 Guns 3 | . . 3 Classes Destroyed 4 | 3 . 1 Worker 1 | 1 . . Tunneler 4 | 4 . . Recycler 1 | 1 . . Swarmer 3 | . . 3 Best Kill Streak 4 | 4 . 3 Combat Bots Only 3 | . . 3 Max Kills in Single Turn 2 | 2 . 1 Gunslinging . | . . . Exploded . | . . . Melee . | . . . Uniques/NPCs Destroyed . | . . . Combat | -11 -10 -10 -------- Run | Jun Mat Min Damage Taken 645 | . . 645 Core 259 | . . 259 Absorbed by Shields . | . . . Core Remaining (%) 100 | 100 . . Volleys Fired 25 | 11 . 14 Largest 2 | 2 . 2 Hottest 60 | 60 . 60 Shots Fired 50 | 22 . 28 Gun 50 | 22 . 28 Cannon . | . . . Launcher . | . . . Special . | . . . Kinetic 25 | 11 . 14 Thermal 25 | 11 . 14 Explosive . | . . . Electromagnetic . | . . . Robot Hit Streak 5 | 4 . 5 Robot Miss Streak 5 | 2 . 5 Penetration Max . | . . . Secondary Targets 1 | . . 1 Max Gunslinging Chain 1 | . . 1 Shots Hit Robots 25 | 14 . 11 Core Hits 9 | 6 . 3 Critical Kills 1 | 1 . . Critical Parts Destroyed . | . . . Critical Strikes 1 | 1 . . Destroy 1 | 1 . . Melee Attacks . | . . . Impact . | . . . Slashing . | . . . Piercing . | . . . Sneak Attacks . | . . . Combat Hostiles . | . . . Follow-up Attacks . | . . . Damage Inflicted 326 | 179 . 147 Guns 326 | 179 . 147 Cannons . | . . . Explosions . | . . . Melee . | . . . Ramming . | . . . Kinetic 138 | 80 . 58 Thermal 188 | 99 . 89 Explosive . | . . . Electromagnetic . | . . . Impact . | . . . Slashing . | . . . Piercing . | . . . Highest Corruption . | . . . Average Corruption . | . . . Corruption Purged . | . . . Corruption Blocked . | . . . Overload Shots . | . . . Overflow Damage . | . . . Projectiles . | . . . Explosions . | . . . Melee . | . . . Knockbacks . | . . . Impact . | . . . Kinetic . | . . . Secondary . | . . . Self-Inflicted Damage . | . . . Shots . | . . . Rammed . | . . . Targets Rammed . | . . . Kicked . | . . . Crushed . | . . . Highest Temperature . | . . . Average Temperature . | . . . Received Heat Transfer 24 | . . 24 Siege Activations . | . . . Robots Corrupted . | . . . Combat Hostiles . | . . . Parts Fried . | . . . Impact Corruptions . | . . . Robots Melted . | . . . Combat Hostiles . | . . . Parts Melted . | . . . Heat Transferred 425 | 225 . 200 Parts Sabotaged . | . . . Parts Stolen . | . . . Parts Stripped . | . . . Power Chain Reactions . | . . . Missiles Intercepted . | . . . Alert | -11 -10 -10 ------- Run | Jun Mat Min Peak Influence 82 | 30 19 82 Initial 19 | . 19 7 Average 32 | 11 19 63 Maximum Alert Level . | . . . Low Security (%) 100 | 100 100 100 Level 1 . | . . . Level 2 . | . . . Level 3 . | . . . Level 4 . | . . . Level 5 . | . . . High Security . | . . . Max Security . | . . . Squads Dispatched . | . . . Investigation . | . . . Extermination . | . . . Reinforcement . | . . . Assault . | . . . Garrison . | . . . Intercept . | . . . Searches Triggered . | . . . Construction Impeded . | . . . Haulers Reinforced . | . . . Active Scanning Responses . | . . . Cargo Convoy Interrupts . | . . . Stealth | -11 -10 -10 --------- Run | Jun Mat Min Distress Signals . | . . . Communications Jammed . | . . . Distress Signals . | . . . Times Spotted 12 | . . 12 Peak Tracking Total 11 | . . 11 Tactical Retreats 1 | . . 1 Traps | -11 -10 -10 ------- Run | Jun Mat Min Traps Triggered . | . . . Indirectly . | . . . Trap Hack Attempts . | . . . Triggered . | . . . Disarmed . | . . . Reprogrammed . | . . . Reused . | . . . Traps Extracted . | . . . Installed . | . . . Triggered . | . . . Machines | -11 -10 -10 ---------- Run | Jun Mat Min Machines Disabled 1 | . . 1 Max in Single Turn 1 | . . 1 Machines Repaired . | . . . Machines Sabotaged . | . . . Overloaded Fab Kills . | . . . Hacking | -11 -10 -10 --------- Run | Jun Mat Min Machines Accessed 1 | . 1 . Terminals 1 | . 1 . Fabricators . | . . . Repair Stations . | . . . Recycling Units . | . . . Scanalyzers . | . . . Garrison Access . | . . . Total Hacks 1 | . 1 . Successful . | . . . Failed 1 | . 1 . Catastrophic . | . . . Database Lockouts . | . . . Manual . | . . . Terminals 1 | . 1 . Fabricators . | . . . Repair Stations . | . . . Recycling Units . | . . . Scanalyzers . | . . . Garrison Access . | . . . Terminal Hacks . | . . . Fabricator Hacks . | . . . Repair Station Hacks . | . . . Recycling Unit Hacks . | . . . Scanalyzer . | . . . Garrison Access Hacks . | . . . Unauthorized Hacks . | . . . Terminals . | . . . Fabricators . | . . . Repair Stations . | . . . Recycling Units . | . . . Scanalyzers . | . . . Garrison Access . | . . . Data Cores Recovered . | . . . Used . | . . . Hacking Detections 1 | . 1 . Full Trace Events . | . . . Feedback Events . | . . . Feedback Blocked . | . . . Robot Schematics Acquired . | . . . Robots Built . | . . . Authchips . | . . . Time . | . . . Total Robot Build Rating . | . . . Part Schematics Acquired . | . . . Parts Built . | . . . Authchips . | . . . Time . | . . . Total Part Build Rating . | . . . Parts Repaired . | . . . Time . | . . . Parts Recycled . | . . . Recycled Matter . | . . . Retrieved Matter . | . . . Retrieved Components . | . . . Parts Scanalyzed . | . . . Part Schematics Acquired . | . . . Parts Damaged . | . . . Bothacking | -11 -10 -10 ------------ Run | Jun Mat Min Used RIF Installer . | . . . Robots Hacked . | . . . Non-combat . | . . . Combat . | . . . Robot Hacks Applied . | . . . Relay Couplers Released . | . . . Fabnet Peak Effective % . | . . . Robots Rewired . | . . . Allies Hacked . | . . . Hacks Repelled . | . . . Allies | -11 -10 -10 -------- Run | Jun Mat Min Total Allies . | . . . Largest Group . | . . . Highest-Rated Group . | . . . Highest-Rated Ally . | . . . Total Orders . | . . . Ally Attacks . | . . . Total Damage . | . . . Kills . | . . . Allies Corrupted . | . . . Allies Melted . | . . . Intel | -11 -10 -10 ------- Run | Jun Mat Min Robot Analysis Total . | . . . Derelict Logs Recovered . | . . . Drone Launches . | . . . Drone Recoveries . | . . . Exploration | -11 -10 -10 ------------- Run | Jun Mat Min Turns Passed 274 | 137 30 107 Spaces Moved 195 | 88 33 74 Core 24 | 19 . 5 Treads . | . . . Legs . | . . . Wheels 171 | 69 33 69 Hover . | . . . Flight . | . . . Fastest Speed 50 | 50 90 80 Average Speed 90 | 94 90 85 Slowest Speed 200 | 200 90 200 Overloaded Moves . | . . . Propulsion Burnouts . | . . . Robots Hopped . | . . . Cave-ins Triggered . | . . . Exploration Rate (%) 10 | 5 10 17 Regions Visited 2 Branch Regions 1 Pre-discovered Areas . | . . . Known Exits Taken . | . . . Unknown Exits Taken 2 | 1 1 . Scrap Searched . | . . . Spaces Dug . | . . . Terrain Destroyed . | . . . Melee . | . . . Projectile . | . . . AOE . | . . . Terrain Rammed . | . . . Walls Destroyed . | . . . Machines Disabled . | . . . Actions | -11 -10 -10 --------- Run | Jun Mat Min Total 241 | 119 33 89 Wait . | . . . Move 193 | 87 32 74 Hop . | . . . Pick Up 15 | 14 1 . Fast Attach . | . . . Attach 8 | 7 . 1 Detach . | . . . Swap . | . . . Drop . | . . . Fire 25 | 11 . 14 Melee . | . . . Ram . | . . . Kick . | . . . Crush . | . . . Escape Stasis . | . . . Rewire . | . . . Trap . | . . . Miscellaneous . | . . . Route ------- -11/Junkyard -10/Materials -10/Mines History --------- Turn | Location | Event 9 | -11/Junkyard | Discovered new exit (range 16) 138 | -11/Junkyard | Entered Materials 151 | -10/Materials | Discovered new exit (range 12) 168 | -10/Materials | Entered Mines 246 | -10/Mines | Assembled infested the area 251 | -10/Mines | Assisted by a Guerilla fighting off Assembled 272 | -10/Mines | Core integrity fell below 50% 274 | -10/Mines | Core integrity fell below 20% 275 | -10/Mines | Destroyed by D-53 Grenadier with Mini Grenade Launcher Last Messages --------------- 00250_ 2V-HPF(h): "I'll hold them off! Go on ahead or try to find another way!" 00251_ A derelict emerges from the shadows: "You need to get out of here! I've been tracking a group of Assembled to figure out where they're coming from, and they're closing on this area, come on!" 00256_ HV Slug penetrates Wall. 00265_ C-30 ARC bursts open, deploying its payload. 00265_ D-53 Grenadier unfolds itself. 00265_ Wheel destroyed. 00267_ T-07 Excavator destroyed. 00267_ Sml. Laser destroyed. 00268_ HV Slug penetrates Wall. 00268_ as-21199 suffers critical hit (Destroy). 00268_ as-21199 destroyed. 00269_ as-74992 destroyed. 00271_ Assault Rifle destroyed. 00273_ Lgt. Ion Engine destroyed. 00273_ Imp. Terrain Scanner destroyed. 00273_ G-34 Mercenary destroyed. 00274_ The unstable cave ceiling collapses. Map ----- +----------------------------------------------------+ | ???????# " #####??#?????????????????????? | | ???????# % *[ #????????????????????????? | | ???????# == ## #????????????????????????? | | ???????# = * ## #??????? ? ??????????????? | | ???????######## ###### "###???"?????????????????? | | ??????????????# #????# *% ### "?? ?????????????? | | ????????????### #????# [## ### """ #????????????? | | ?#?????????## ##???# ## % #????????????? | | ??#????#??## #??## ####"# #????????????? | | ???????????# #?## ###""###??###????????????? | | ??????#????# ###### % #?? ??????????????? | | ???????????###??#?# % #?????????????????? | | ??????????????????# ### #?????????????????? | | ???#????????#??##?# #???? ???????????????? | | ??##??????#?????#?# #???? ? #????????????? | | ?????????????#???## ##???????? #????????????? | | ???????????#?????# ###?????????????????????? | | ???????????????#### #?????????????????????? | | ?????????????????# #?????????????????????? | | ?????????????????# ###???????????????????? | | ?????????????????## #????????????????????? | | ??????????????????# # #????????????????????? | | ??????????????????# # d ##???????????????????? | | ??????????????????# #???????????????????? | | ??????????????????# % #???????????????????? | | ??????????????????# @d #???????????????????? | | ??????????????????## #???????????????????? | | ???????????????????## [#??????????????????? | | ?????????????#??????##### %=#?????????????????? | | ????????????????????????## = #????????????????? | | ?????????????????????????? g ???????????????? | | ??????????????????????? ? ?????????????? | | ?????????????????????????? ????????????? | | ??????????????????????????# ## ???????????? | | ???????????????????????????#####?### ???????????? | | ?????????????????????????????????????????????????? | | ?????????????????????????????????????????????????? | | ?????????????????????????????????????????????????? | | ?????????????????????????????????????????????????? | | ?????????????????????????????????????????????????? | | ?????????????????????????????????????????????????? | | ?????????????????????????????????????????????????? | | ?????????????????????????????????????????????????? | | ?????????????????????????????????????????????????? | | ?????????????????????????????????????????????????? | | ?????????????????????????????????????????????????? | | ?????????????????????????????????????????????????? | | ?????????????????????????????????????????????????? | | ?????????????????????????????????????????????????? | | ?????????????????????????????????????????????????? | +----------------------------------------------------+ Best States ------------- Heat Dissipation 25 Energy Generation 10 Energy Capacity 125 Matter Stores 300 Matter Capacity 300 Sight Range 16 Terrain Scan Range 16 Terrain Scan Density 10 Evasion (%) 50 Item Schematics ----------------- None Robot Schematics ------------------ None Fabricated ------------ Nothing Alien Tech Used ----------------- None Achievements -------------- None Challenges ------------ None Game ------ Seed TrackerRagnarokCasing Manual? 0 Play Time 00:05:24 Cumulative 32.2 hours Start 2023.09.11 @ 19:37:19 End 2023.09.11 @ 19:41:10 Sessions 1 Manual Loads 0 Difficulty Rogue Special Mode None Game No. 71 Rogue 71 Adventurer 0 Explorer 0 Win Type - Total 0 Types 0/0/0/0/0/0/0/0/0 Lore% 25 Gallery% 26 Achievement% 23 Wizard Run 0 Options --------- ASCII 0 Keyboard 0 Movement Mouse Keybinds 0 Fullscreen 1 Font 18/SmallcapsGlow Map View 76x50 Tactical HUD 1 Map Filters NONE Filters NONE Steam 1 RUN: 8fe5c337-c16c-4e3f-9d03-2bf0d48b5bc7